bitfinex/quotes_BTCUSD_20240101
["timestamp","ask_amount","ask_price","bid_price","bid_amount"]
[1704073383569,0.00972968,42754.0,42753.0,0.2580746]
[1704073383912,0.01072968,42754.0,42753.0,0.2760746]
[1704073384338,0.00972968,42754.0,42753.0,0.2580746]
[1704073384544,0.01072968,42754.0,42753.0,0.2760746]
[1704073386003,0.47852168,42754.0,42753.0,0.2760746]
[1704073386209,0.47852168,42754.0,42753.0,0.26921711]
[1704073386413,0.47852168,42754.0,42753.0,0.036]
[1704073386632,0.47852168,42754.0,42753.0,0.04285749]
[1704073387242,0.47852168,42754.0,42753.0,0.04261949]
[1704073387454,0.47852168,42754.0,42753.0,0.035762]
[1704073387659,0.47852168,42754.0,42753.0,0.04261949]
[1704073388479,0.47852168,42754.0,42753.0,0.035762]
[1704073388693,0.47852168,42754.0,42753.0,0.04261949]
[1704073389306,0.47852168,42754.0,42753.0,0.035762]
[1704073389711,0.47852168,42754.0,42753.0,0.04261949]
[1704073390116,0.47852168,42754.0,42753.0,0.035762]
[1704073390405,0.47852168,42754.0,42753.0,0.04261949]
[1704073391288,0.47852168,42754.0,42753.0,0.035762]
[1704073391495,0.47852168,42754.0,42753.0,0.04261949]
[1704073392335,0.47852168,42754.0,42753.0,0.035762]
[1704073392551,0.47852168,42754.0,42753.0,0.04261949]
[1704073393679,0.01072968,42754.0,42753.0,0.04261949]
[1704073393900,0.47852168,42754.0,42753.0,0.04261949]
[1704073397015,0.47852168,42754.0,42753.0,0.035762]
[1704073397016,0.57852168,42754.0,42753.0,0.035762]
[1704073398525,1.31987368,42754.0,42753.0,0.035762]
[1704073398732,1.37591342,42754.0,42753.0,0.035762]
[1704073399161,1.37491342,42754.0,42753.0,0.018]
[1704073399380,1.31887368,42754.0,42753.0,0.018]
[1704073399602,1.37591342,42754.0,42753.0,0.036]
[1704073399804,0.1,42750.0,42746.0,0.2389]
[1704073400011,0.00872968,42746.0,42745.0,0.00685749]
[1704073400255,0.00872968,42746.0,42745.0,0.2400746]
[1704073400869,0.00872968,42746.0,42741.0,0.2322]
[1704073400870,0.00872968,42742.0,42741.0,0.2322]
[1704073401051,0.00872968,42742.0,42741.0,0.4722746]
[1704073402580,0.00872968,42742.0,42741.0,0.48341711]
[1704073402581,0.01072968,42742.0,42741.0,0.48341711]
[1704073402836,0.01072968,42742.0,42741.0,0.4902746]
[1704073403283,0.01172968,42742.0,42741.0,0.5082746]
[1704073404634,0.01172968,42742.0,42741.0,0.50141711]
[1704073404847,0.01172968,42742.0,42741.0,0.51503029]
[1704073405091,0.01172968,42742.0,42741.0,0.28181318]
[1704073405336,0.47965268,42742.0,42741.0,0.28181318]
[1704073405592,0.47965268,42742.0,42741.0,0.04961318]
[1704073405836,0.47965268,42742.0,42741.0,0.036]
[1704073406333,0.57965268,42742.0,42741.0,0.036]
[1704073407338,0.57865268,42742.0,42741.0,0.018]
[1704073407561,0.57965268,42742.0,42741.0,0.036]
[1704073407796,0.57765268,42742.0,42741.0,0.018]
[1704073408032,0.57965268,42742.0,42741.0,0.036]
[1704073408266,0.57765268,42742.0,42741.0,0.018]
[1704073408769,0.57765268,42742.0,42741.0,0.036]
[1704073408770,0.57965268,42742.0,42741.0,0.036]
[1704073409004,0.57865268,42742.0,42741.0,0.018]
[1704073409237,0.57865268,42742.0,42741.0,0.036]
[1704073409238,0.57965268,42742.0,42741.0,0.036]
[1704073409498,0.47965268,42742.0,42741.0,0.036]
[1704073409729,0.01172968,42742.0,42741.0,0.26921711]
[1704073409962,0.01172968,42742.0,42741.0,0.28283029]
[1704073412103,0.01172968,42742.0,42741.0,0.04961318]
[1704073412328,0.01172968,42742.0,42741.0,0.036]
[1704073413576,0.47965268,42742.0,42741.0,0.036]
[1704073413809,0.57965268,42742.0,42741.0,0.036]
[1704073415098,0.47965268,42742.0,42741.0,0.036]
[1704073415316,0.01172968,42742.0,42741.0,0.036]
[1704073415529,0.47965268,42742.0,42741.0,0.036]
[1704073416450,0.57965268,42742.0,42741.0,0.036]
[1704073417085,0.47965268,42742.0,42741.0,0.036]
[1704073417300,0.57965268,42742.0,42741.0,0.036]
[1704073420574,0.47965268,42742.0,42741.0,0.26921711]
[1704073421035,0.47965268,42742.0,42741.0,0.28285886]
[1704073426780,0.003,42742.0,42741.0,0.33975635]
[1704073427403,0.003,42742.0,42741.0,0.28971635]
[1704073427825,0.002,42742.0,42741.0,0.27171635]
[1704073428039,0.00872968,42746.0,42745.0,0.00685749]
[1704073428255,0.00872968,42746.0,42745.0,0.2400746]
[1704073428468,0.00872968,42746.0,42745.0,0.2536671]
[1704073429154,0.47660968,42746.0,42745.0,0.0135925]
[1704073429390,0.80382443,42746.0,42745.0,0.0315925]
[1704073429632,0.74886443,42746.0,42745.0,0.02485749]
[1704073429877,0.57660968,42746.0,42745.0,0.02485749]
[1704073430120,0.57660968,42746.0,42745.0,0.018]
[1704073430340,0.57660968,42746.0,42745.0,0.036]
[1704073430558,0.47660968,42746.0,42745.0,0.04285749]
[1704073433502,0.47660968,42746.0,42745.0,0.2760746]
[1704073434593,0.47660968,42746.0,42745.0,0.26921711]
[1704073434805,0.57660968,42746.0,42745.0,0.036]
[1704073435034,0.57660968,42746.0,42745.0,0.04285749]
[1704073436145,1.30766968,42746.0,42745.0,0.036]
[1704073437054,1.04448968,42746.0,42741.0,0.00685749]
[1704073437267,0.00872968,42742.0,42741.0,0.00685749]
[1704073437923,0.47665268,42742.0,42741.0,0.00685749]
[1704073438791,0.47665268,42742.0,42739.0,0.23755749]
[1704073439029,0.47665268,42742.0,42741.0,0.00685749]
[1704073439260,0.47665268,42742.0,42741.0,0.02485749]
[1704073439473,0.47665268,42742.0,42741.0,0.03316165]
[1704073440078,0.47765268,42742.0,42741.0,0.05116165]
[1704073440516,0.47765268,42742.0,42741.0,0.03316165]
[1704073441605,0.47765268,42742.0,42741.0,0.05116165]
[1704073442532,0.001,42742.0,42741.0,0.28437876]
[1704073442800,0.00972968,42742.0,42741.0,0.28437876]
[1704073450429,0.001,42742.0,42741.0,0.28437876]
[1704073451114,0.00972968,42742.0,42741.0,0.28437876]
[1704073453288,0.00972968,42742.0,42741.0,0.27752127]
[1704073453507,0.47765268,42742.0,42741.0,0.05116165]
[1704073453942,0.47765268,42742.0,42741.0,0.04285749]
[1704073455121,0.00972968,42742.0,42741.0,0.04285749]
[1704073455346,0.47765268,42742.0,42741.0,0.04285749]
[1704073459325,0.72889268,42742.0,42741.0,0.036]
[1704073459528,0.82889268,42742.0,42741.0,0.036]
[1704073459731,0.88501483,42742.0,42741.0,0.036]
[1704073460139,0.77765268,42742.0,42741.0,0.036]
[1704073460348,0.77765268,42742.0,42741.0,0.018]
[1704073460556,0.77865268,42742.0,42741.0,0.036]
[1704073460771,0.77765268,42742.0,42741.0,0.018]
[1704073460972,0.1,42740.0,42737.0,0.00685749]
[1704073461183,0.1,42740.0,42739.0,0.00685749]
[1704073461184,0.57668168,42740.0,42739.0,0.00685749]
[1704073461655,0.57668168,42740.0,42739.0,0.01543728]
[1704073461941,0.57668168,42740.0,42739.0,0.00685749]
[1704073462216,0.57668168,42740.0,42734.0,0.23321711]
[1704073462217,0.00872968,42738.0,42737.0,0.00685749]
[1704073462438,0.00872968,42735.0,42734.0,0.2400746]
[1704073462677,0.00872968,42735.0,42734.0,0.23321711]
[1704073463152,0.00872968,42735.0,42734.0,0.2400746]
[1704073463663,0.00972968,42735.0,42734.0,0.2580746]
[1704073463898,0.01072968,42735.0,42734.0,0.2760746]
[1704073466912,0.01072968,42735.0,42734.0,0.28469133]
[1704073468006,0.01072968,42735.0,42734.0,0.27783384]
[1704073468219,0.01072968,42735.0,42734.0,0.28469133]
[1704073472214,0.01072968,42735.0,42734.0,0.33017133]
[1704073472489,0.002,42735.0,42734.0,0.33017133]
[1704073473606,0.002,42735.0,42734.0,0.35051133]
[1704073473836,0.002,42735.0,42734.0,1.34279265]
[1704073474067,0.002,42735.0,42734.0,1.39836341]
[1704073474567,0.002,42735.0,42734.0,1.42614879]
[1704073474823,0.002,42735.0,42734.0,1.34279265]
[1704073475102,0.002,42735.0,42734.0,1.44830183]
[1704073475334,0.002,42735.0,42734.0,1.39279265]
[1704073477709,0.002,42735.0,42734.0,1.44830183]
[1704073478136,0.002,42735.0,42734.0,1.39279265]
[1704073481987,0.002,42735.0,42734.0,1.11270233]
[1704073482372,0.002,42735.0,42734.0,1.15986233]
[1704073484040,0.002,42735.0,42734.0,1.18806233]
[1704073484860,0.002,42735.0,42734.0,1.36933265]
[1704073485088,0.002,42735.0,42734.0,1.39233265]
[1704073485308,0.002,42735.0,42734.0,1.40233265]
[1704073488425,0.01072968,42735.0,42734.0,0.33469133]
[1704073489515,0.01072968,42735.0,42734.0,0.28469133]
[1704073501017,0.002,42735.0,42734.0,0.28469133]
[1704073501241,0.002,42735.0,42734.0,0.34073133]
[1704073501471,0.002,42735.0,42734.0,1.03043265]
[1704073501689,0.002,42735.0,42734.0,1.51894183]
[1704073502134,0.002,42735.0,42734.0,1.82348216]
[1704073502348,0.002,42735.0,42734.0,1.51886363]
[1704073502811,0.001,42735.0,42734.0,1.59938363]
[1704073503002,0.001,42735.0,42734.0,1.50086363]
[1704073503216,0.001,42735.0,42734.0,1.56886363]
[1704073503429,0.00872968,42747.0,42745.0,0.00685749]
[1704073503657,0.00872968,42746.0,42745.0,0.2400746]
[1704073504755,0.00872968,42746.0,42745.0,0.2770746]
[1704073505873,0.00872968,42746.0,42745.0,0.27266443]
[1704073506295,0.00872968,42746.0,42745.0,0.2590746]
[1704073506513,0.00872968,42746.0,42745.0,0.2770746]
[1704073506736,0.00872968,42746.0,42745.0,0.28470153]
[1704073507393,0.00872968,42746.0,42745.0,0.28464053]
[1704073512119,0.00872968,42746.0,42745.0,0.05148442]
[1704073512567,0.00872968,42746.0,42745.0,0.04385749]
[1704073513441,0.47660968,42746.0,42745.0,0.04385749]
[1704073516924,0.47660968,42746.0,42745.0,0.037]
[1704073517135,0.47660968,42746.0,42745.0,0.04385749]
[1704073520134,0.67660968,42746.0,42745.0,0.037]
[1704073527114,0.20872968,42746.0,42745.0,0.037]
[1704073527323,0.67660968,42746.0,42745.0,0.037]
[1704073529228,0.67660968,42746.0,42745.0,0.27021711]
[1704073529229,0.00872968,42746.0,42745.0,0.27021711]
[1704073529444,0.00872968,42746.0,42745.0,0.2770746]
[1704073529659,0.00872968,42746.0,42745.0,0.28474704]
[1704073532854,0.00872968,42746.0,42745.0,0.05152993]
[1704073535078,0.15441367,42746.0,42745.0,0.05152993]
[1704073535295,0.15441367,42746.0,42745.0,0.04385749]
[1704073535509,0.00872968,42746.0,42745.0,0.04385749]
[1704073537870,0.00872968,42746.0,42745.0,0.2770746]
[1704073538320,0.00872968,42746.0,42745.0,0.28471598]
[1704073548924,0.00872968,42746.0,42745.0,0.05149887]
[1704073549117,0.00872968,42746.0,42745.0,0.04464138]
[1704073549118,0.57660968,42746.0,42745.0,0.04464138]
[1704073549315,0.57660968,42746.0,42745.0,0.037]
[1704073552406,0.67660968,42746.0,42745.0,0.037]
[1704073558593,0.82190968,42746.0,42745.0,0.037]
[1704073558797,1.12044512,42746.0,42745.0,0.037]
[1704073559021,1.28008018,42746.0,42745.0,0.037]
[1704073559208,2.57193696,42746.0,42745.0,0.037]
[1704073559740,2.57193696,42746.0,42745.0,0.019]
[1704073559953,2.66271696,42746.0,42745.0,0.019]
[1704073560175,2.71251162,42746.0,42745.0,0.019]
[1704073560388,2.57193696,42746.0,42745.0,0.029]
[1704073560642,2.71994258,42746.0,42745.0,0.029]
[1704073560824,1.36799976,42746.0,42745.0,0.019]
[1704073561034,0.00872968,42738.0,42737.0,0.00685749]
[1704073562565,0.00872968,42738.0,42737.0,0.02585749]
[1704073563438,0.00872968,42738.0,42737.0,0.04385749]
[1704073565623,0.00872968,42740.0,42739.0,0.00685749]
[1704073565843,0.00872968,42740.0,42739.0,0.2400746]
[1704073566066,0.00872968,42740.0,42739.0,0.24816137]
[1704073566723,0.00872968,42740.0,42739.0,0.26716137]
[1704073567198,0.00872968,42740.0,42739.0,0.24816137]
[1704073567822,0.00872968,42740.0,42739.0,0.26616137]
[1704073568511,0.00872968,42740.0,42739.0,0.28516137]
[1704073570363,0.00872968,42740.0,42739.0,0.34210137]
[1704073570597,0.00872968,42740.0,42739.0,0.28516137]
[1704073576181,0.00872968,42740.0,42739.0,0.05194426]
[1704073579250,0.00872968,42740.0,42739.0,0.04508677]
[1704073579463,0.00872968,42740.0,42739.0,0.05194426]
[1704073581002,0.00872968,42740.0,42739.0,0.28516137]
[1704073581225,0.00872968,42740.0,42739.0,0.34102137]
[1704073581890,0.00872968,42740.0,42739.0,0.28516137]
[1704073590642,0.00872968,42740.0,42739.0,0.05194426]
[1704073592490,0.16410602,42740.0,42739.0,0.04385749]
[1704073592693,0.16410602,42740.0,42739.0,0.05221137]
[1704073592925,0.16410602,42740.0,42739.0,0.04385749]
[1704073593317,0.00872968,42740.0,42739.0,0.04385749]
[1704073594137,0.00872968,42740.0,42739.0,0.05221137]
[1704073597832,0.00872968,42740.0,42739.0,0.28542848]
[1704073606154,0.00872968,42744.0,42743.0,0.00685749]
[1704073606402,0.00872968,42744.0,42743.0,0.24839765]
[1704073606665,0.00872968,42744.0,42743.0,0.2400746]
[1704073606904,0.00872968,42744.0,42743.0,0.24839765]
[1704073607372,0.00872968,42744.0,42743.0,0.26739765]
[1704073607614,0.00872968,42744.0,42743.0,0.28639765]
[1704073608066,0.00872968,42744.0,42743.0,0.05318054]
[1704073615843,0.00872968,42744.0,42743.0,0.04632305]
[1704073616067,0.47663068,42744.0,42743.0,0.04632305]
[1704073616281,0.67663068,42744.0,42743.0,0.05318054]
[1704073616489,0.67663068,42744.0,42743.0,0.04485749]
[1704073617751,0.47663068,42744.0,42743.0,0.04485749]
[1704073623584,0.47663068,42744.0,42743.0,0.038]
[1704073623996,0.47663068,42744.0,42743.0,0.04485749]
[1704073624240,0.47663068,42744.0,42743.0,0.038]
[1704073624882,0.47663068,42744.0,42743.0,0.04485749]
[1704073625307,0.47663068,42744.0,42743.0,0.038]
[1704073625308,1.48509258,42744.0,42743.0,0.038]
[1704073625527,1.57644244,42744.0,42743.0,0.038]
[1704073625753,1.62823856,42744.0,42743.0,0.038]
[1704073626000,1.62260699,42744.0,42743.0,0.038]
[1704073626186,1.45544251,42744.0,42743.0,0.038]
[1704073626423,1.45544251,42744.0,42734.0,0.00685749]
[1704073626424,0.00872968,42735.0,42734.0,0.00685749]
[1704073626634,0.00872968,42734.0,42732.0,0.00685749]
[1704073626892,0.467981,42737.0,42729.0,0.6571]
[1704073626893,0.00872968,42730.0,42729.0,0.6571]
[1704073627118,0.00872968,42730.0,42729.0,0.00685749]
[1704073629039,0.00872968,42730.0,42729.0,0.02485749]
[1704073629261,0.00872968,42730.0,42729.0,0.04285749]
[1704073630673,0.00872968,42730.0,42728.0,0.24195749]
[1704073630891,0.468022,42733.0,42728.0,0.24195749]
[1704073630892,0.00872968,42729.0,42728.0,0.4751746]
[1704073632044,0.00872968,42729.0,42728.0,0.4931746]
[1704073632686,0.00872968,42729.0,42728.0,0.24195749]
[1704073632906,0.00872968,42729.0,42728.0,0.018]
[1704073632907,0.01072968,42729.0,42728.0,0.018]
[1704073633106,0.01272968,42729.0,42728.0,0.036]
[1704073636797,0.48079568,42729.0,42728.0,0.036]
[1704073637910,0.65225019,42729.0,42728.0,0.036]
[1704073638807,0.65025019,42729.0,42728.0,0.018]
[1704073639027,0.00872968,42728.0,42727.0,0.02882]
[1704073639238,0.47680668,42728.0,42727.0,0.02882]
[1704073640962,0.57680668,42728.0,42727.0,0.02882]
[1704073641160,0.82980668,42728.0,42727.0,0.04682]
[1704073641395,0.77880668,42728.0,42727.0,0.04682]
[1704073641638,0.78080668,42728.0,42727.0,0.06482]
[1704073642266,0.9756814,42728.0,42727.0,0.06482]
[1704073642479,1.0102214,42728.0,42727.0,0.06482]
[1704073642663,1.44323145,42728.0,42727.0,0.06482]
[1704073642906,1.44123145,42728.0,42727.0,0.04682]
[1704073643117,1.44123145,42728.0,42727.0,0.06482]
[1704073643321,1.44323145,42728.0,42727.0,0.06482]
[1704073643544,1.53329145,42728.0,42727.0,0.06482]
[1704073643973,1.46013145,42728.0,42727.0,0.04682]
[1704073644187,1.55231145,42728.0,42727.0,0.05982]
[1704073644395,1.55031145,42728.0,42727.0,0.04182]
[1704073644859,1.65251851,42728.0,42727.0,0.05982]
[1704073645084,1.78611955,42728.0,42727.0,0.05982]
[1704073645742,4.3474834,42728.0,42727.0,0.05982]
[1704073646653,4.25419655,42728.0,42727.0,0.05982]
[1704073647181,4.25138655,42728.0,42727.0,0.05982]
[1704073647403,4.24738655,42728.0,42727.0,0.02382]
[1704073647605,4.24838655,42728.0,42727.0,0.03182]
[1704073647818,3.07479783,42728.0,42727.0,0.04182]
[1704073648025,3.07379783,42728.0,42727.0,0.03382]
[1704073648230,4.00895183,42728.0,42727.0,0.02382]
[1704073648450,4.00995183,42728.0,42727.0,0.02982]
[1704073648659,4.01095183,42728.0,42727.0,0.03782]
[1704073650500,4.03862816,42728.0,42727.0,0.03782]
[1704073650910,4.12874816,42728.0,42727.0,0.03782]
[1704073651119,3.21886743,42728.0,42727.0,0.03782]
[1704073651327,3.12874743,42728.0,42727.0,0.03782]
[1704073651548,4.06490143,42728.0,42727.0,0.03782]
[1704073651746,4.15496143,42728.0,42727.0,0.03782]
[1704073653608,4.24824828,42728.0,42727.0,0.03782]
[1704073654271,4.71632528,42728.0,42727.0,0.03782]
[1704073654487,4.62303843,42728.0,42727.0,0.03782]
[1704073654714,4.62303843,42728.0,42724.0,0.02882]
[1704073654715,0.31872968,42725.0,42724.0,0.02882]
[1704073654925,1.02005679,42725.0,42724.0,0.02882]
[1704073655132,1.68954735,42725.0,42724.0,0.02882]
[1704073655569,2.15765735,42725.0,42724.0,0.02882]
[1704073655981,2.15865735,42725.0,42724.0,0.03582]
[1704073656191,2.04819735,42725.0,42724.0,0.03582]
[1704073657077,2.14503735,42725.0,42724.0,0.03582]
[1704073657291,2.14603735,42725.0,42724.0,0.04182]
[1704073657483,2.14403735,42725.0,42724.0,0.02882]
[1704073657694,2.47868062,42725.0,42724.0,0.02882]
[1704073657900,2.47968062,42725.0,42724.0,0.03482]
[1704073658317,2.48068062,42725.0,42724.0,0.04182]
[1704073659461,2.38739377,42725.0,42724.0,0.04182]
[1704073659867,2.14603735,42725.0,42724.0,0.04182]
[1704073660201,2.04919735,42725.0,42724.0,0.04182]
[1704073661918,2.14705735,42725.0,42724.0,0.04182]
[1704073662070,2.04919735,42725.0,42724.0,0.04182]
[1704073662818,2.14777735,42725.0,42724.0,0.04182]
[1704073662975,2.61588735,42725.0,42724.0,0.04182]
[1704073663178,2.90967589,42725.0,42724.0,0.04182]
[1704073663597,2.81638904,42725.0,42724.0,0.04182]
[1704073664307,2.71780904,42725.0,42724.0,0.04182]
[1704073664512,2.51730735,42725.0,42724.0,0.04182]
[1704073664974,2.61456735,42725.0,42724.0,0.04182]
[1704073665175,2.51730735,42725.0,42724.0,0.04182]
[1704073665575,2.61336735,42725.0,42724.0,0.04182]
[1704073665775,2.51730735,42725.0,42724.0,0.04182]
[1704073665978,2.61468735,42725.0,42724.0,0.04182]
[1704073666328,2.51730735,42725.0,42724.0,0.04182]
[1704073666531,2.04919735,42725.0,42724.0,0.03182]
[1704073666734,2.01235735,42725.0,42724.0,0.03182]
[1704073668930,2.14117735,42725.0,42724.0,0.03182]
[1704073669549,2.38253377,42725.0,42724.0,0.03182]
[1704073670235,2.47582062,42725.0,42724.0,0.03182]
[1704073670375,2.2344642,42725.0,42724.0,0.03182]
[1704073670796,2.14117735,42725.0,42724.0,0.03182]
[1704073671183,2.51202735,42725.0,42724.0,0.03182]
[1704073671889,2.04391735,42725.0,42724.0,0.03182]
[1704073672095,2.51202735,42725.0,42724.0,0.03182]
[1704073672522,2.04391735,42725.0,42724.0,0.03182]
[1704073672959,2.01445735,42725.0,42724.0,0.03182]
[1704073673868,2.11225735,42725.0,42724.0,0.03182]
[1704073674930,2.35087486,42725.0,42724.0,0.03182]
[1704073675139,2.38585486,42725.0,42724.0,0.03182]
[1704073677084,2.04943735,42725.0,42724.0,0.03182]
[1704073677288,2.02261735,42725.0,42724.0,0.03182]
[1704073678068,2.11369735,42725.0,42724.0,0.03182]
[1704073678267,2.16982172,42725.0,42724.0,0.03182]
[1704073678695,0.31872968,42724.0,42723.0,0.02882]
[1704073678891,0.31872968,42723.0,42722.0,0.239]
[1704073679101,1.37613631,42723.0,42722.0,0.239]
[1704073679341,2.58664635,42723.0,42722.0,0.239]
[1704073680348,2.50245979,42723.0,42722.0,0.239]
[1704073680780,2.50345979,42723.0,42722.0,0.249]
[1704073681020,2.50445979,42723.0,42722.0,0.257]
[1704073681431,2.61670854,42723.0,42722.0,0.257]
[1704073681633,2.89474139,42723.0,42722.0,0.257]
[1704073681848,2.61670854,42723.0,42722.0,0.257]
[1704073682360,2.64466811,42723.0,42722.0,0.257]
[1704073683421,2.50445979,42723.0,42722.0,0.257]
[1704073683642,2.50445979,42723.0,42702.0,2.81722]
[1704073683643,0.31872968,42718.0,42702.0,2.81722]
[1704073683857,2.42868598,42718.0,42702.0,2.81722]
[1704073684080,2.51805776,42718.0,42702.0,2.81722]
[1704073684544,0.00872968,42703.0,42702.0,2.81722]
[1704073684760,0.10201653,42703.0,42702.0,0.02882]
[1704073684972,1.41837853,42703.0,42702.0,0.04241741]
[1704073685183,1.25002753,42703.0,42702.0,0.02882]
[1704073685407,1.25002753,42703.0,42702.0,0.03902535]
[1704073685408,0.88708068,42703.0,42702.0,0.03902535]
[1704073685630,0.88708068,42703.0,42702.0,0.02882]
[1704073685850,0.78708068,42703.0,42702.0,0.03725764]
[1704073686065,0.77908068,42703.0,42702.0,0.04125764]
[1704073686286,0.77908068,42703.0,42702.0,0.05025764]
[1704073686287,0.89108068,42703.0,42702.0,0.05025764]
[1704073686507,0.78108068,42703.0,42702.0,0.05025764]
[1704073687411,0.88108068,42703.0,42702.0,0.05025764]
[1704073687626,0.31272968,42703.0,42702.0,0.05025764]
[1704073687846,0.48108068,42703.0,42702.0,0.05025764]
[1704073688073,0.01272968,42703.0,42702.0,0.05025764]
[1704073689654,0.00872968,42703.0,42702.0,0.03725764]
[1704073689911,0.01272968,42703.0,42702.0,0.02425764]
[1704073690147,0.01072968,42703.0,42702.0,0.01625764]
[1704073690367,0.01272968,42703.0,42702.0,0.02425764]
[1704073691032,0.01072968,42703.0,42702.0,0.02025764]
[1704073691883,0.01272968,42703.0,42702.0,0.02425764]
[1704073693675,0.48108068,42703.0,42702.0,0.02425764]
[1704073696158,0.53148068,42703.0,42702.0,0.02425764]
[1704073696904,0.63148068,42703.0,42702.0,0.02425764]
[1704073697749,0.62948068,42703.0,42702.0,0.02025764]
[1704073697951,0.58108068,42703.0,42702.0,0.02425764]
[1704073698310,0.57908068,42703.0,42702.0,0.01625764]
[1704073698529,0.57708068,42703.0,42702.0,0.01225764]
[1704073698704,0.58008068,42703.0,42702.0,0.02325764]
[1704073698916,0.58008068,42703.0,42702.0,0.03060764]
[1704073700367,0.48008068,42703.0,42702.0,0.03060764]
[1704073701624,0.48008068,42703.0,42702.0,0.26382475]
[1704073701625,0.01172968,42703.0,42702.0,0.26382475]
[1704073701832,0.003,42703.0,42702.0,0.26382475]
[1704073702064,0.05676,42719.0,42717.0,0.1]
[1704073702327,0.00872968,42731.0,42725.0,0.1]
[1704073702542,0.00872968,42730.0,42726.0,0.23321711]
[1704073702754,0.00872968,42730.0,42726.0,0.25621711]
[1704073702971,0.00872968,42730.0,42727.0,0.05448]
[1704073703177,0.00872968,42730.0,42728.0,0.23321711]
[1704073703408,0.00872968,42735.0,42728.0,0.23321711]
[1704073703641,0.2,42746.0,42728.0,0.23321711]
[1704073703642,0.00872968,42734.0,42730.0,0.01]
[1704073703857,0.00872968,42732.0,42731.0,0.23321711]
[1704073704066,0.00872968,42732.0,42731.0,0.2418411]
[1704073705572,0.01272968,42732.0,42731.0,0.2778411]
[1704073711357,0.01272968,42732.0,42731.0,0.04462399]
[1704073716260,0.15385495,42732.0,42731.0,0.04462399]
[1704073716722,0.15385495,42732.0,42731.0,0.036]
[1704073718116,0.62188795,42732.0,42731.0,0.036]
[1704073718529,0.82188795,42732.0,42731.0,0.036]
[1704073718750,0.62188795,42732.0,42731.0,0.036]
[1704073718973,0.68076268,42732.0,42731.0,0.036]
[1704073723252,0.21272968,42732.0,42731.0,0.036]
[1704073723478,0.68076268,42732.0,42731.0,0.036]
[1704073723899,0.48076268,42732.0,42731.0,0.036]
[1704073724541,0.58076268,42732.0,42731.0,0.036]
[1704073727048,0.73188268,42732.0,42731.0,0.036]
[1704073727269,0.96686849,42732.0,42731.0,0.036]
[1704073727954,0.91574849,42732.0,42731.0,0.036]
[1704073728397,0.91574849,42732.0,42723.0,0.2365]
[1704073728398,0.00872968,42724.0,42723.0,0.2365]
[1704073728609,0.00872968,42724.0,42722.0,0.6571]
[1704073728826,0.00872968,42723.0,42722.0,0.89031711]
[1704073729275,0.00872968,42723.0,42722.0,0.6571]
[1704073729699,0.00872968,42722.0,42721.0,0.00735]
[1704073731984,0.01272968,42722.0,42721.0,0.04335]
[1704073733531,0.48087168,42722.0,42721.0,0.04335]
[1704073734371,0.47887168,42722.0,42721.0,0.02535]
[1704073734596,0.67887168,42722.0,42721.0,0.02535]
[1704073735018,0.68087168,42722.0,42721.0,0.04135]
[1704073735226,0.48287168,42722.0,42721.0,0.05935]
[1704073735445,0.47687168,42722.0,42721.0,0.00735]
[1704073735712,0.48087168,42722.0,42721.0,0.04135]
[1704073735926,0.01272968,42722.0,42721.0,0.04135]
[1704073736364,0.01272968,42722.0,42721.0,0.04989499]
[1704073737027,0.62773238,42722.0,42721.0,0.04989499]
[1704073737445,0.62773238,42722.0,42721.0,0.04135]
[1704073738285,0.99163238,42722.0,42721.0,0.04135]
[1704073739115,0.98963238,42722.0,42721.0,0.02535]
[1704073739577,0.99063238,42722.0,42721.0,0.03735]
[1704073740611,0.98963238,42722.0,42721.0,0.02535]
[1704073740811,0.98763238,42722.0,42721.0,0.00735]
[1704073740993,0.98863238,42722.0,42721.0,0.01635]
[1704073741202,0.98963238,42722.0,42721.0,0.02435]
[1704073748112,0.54277168,42722.0,42721.0,0.02435]
[1704073748422,0.01072968,42722.0,42721.0,0.02435]
[1704073748872,0.01072968,42722.0,42721.0,0.0321528]
[1704073751807,0.00972968,42722.0,42721.0,0.0151528]
[1704073752046,0.00872968,42722.0,42721.0,0.26336991]
[1704073752301,0.01072968,42722.0,42721.0,0.27936991]
[1704073752536,0.00972968,42722.0,42721.0,0.26436991]
[1704073752792,0.00972968,42722.0,42721.0,0.26636991]
[1704073752793,0.01072968,42722.0,42721.0,0.26636991]
[1704073754002,0.01272968,42722.0,42721.0,0.28436991]
[1704073758328,0.004,42722.0,42721.0,1.12383323]
[1704073758547,0.004,42722.0,42721.0,1.14683323]
[1704073759379,0.004,42722.0,42721.0,0.85556291]
[1704073759624,0.004,42722.0,42721.0,0.75252291]
[1704073759837,0.004,42722.0,42721.0,1.15697323]
[1704073760020,0.004,42722.0,42721.0,1.16697323]
[1704073760442,0.002,42722.0,42721.0,1.14897323]
[1704073760662,0.00872968,42728.0,42721.0,0.90544291]
[1704073760874,0.002,42722.0,42721.0,0.2400728]
[1704073761039,0.001,42722.0,42721.0,0.1661528]
[1704073761264,0.00872968,42726.0,42721.0,0.2026928]
[1704073761478,0.001,42722.0,42721.0,0.2206928]
[1704073761702,0.001,42722.0,42721.0,0.1661528]
[1704073761906,0.002,42722.0,42721.0,0.7141658]
[1704073762080,0.001,42722.0,42721.0,0.6961658]
[1704073762288,0.00872968,42726.0,42721.0,0.6961658]
[1704073762289,0.00972968,42726.0,42721.0,0.6961658]
[1704073762499,0.00972968,42726.0,42722.0,0.491132]
[1704073762698,0.00972968,42726.0,42723.0,0.28223711]
[1704073762937,0.00972968,42726.0,42723.0,0.28994022]
[1704073763175,0.00972968,42726.0,42723.0,0.70905122]
[1704073763422,0.001,42726.0,42723.0,0.70905122]
[1704073763651,0.00872968,42724.0,42723.0,0.24092022]
[1704073764767,0.00872968,42724.0,42723.0,0.25892022]
[1704073765011,0.00972968,42724.0,42723.0,0.27692022]
[1704073765255,0.00972968,42724.0,42723.0,0.25892022]
[1704073765504,0.01072968,42724.0,42723.0,0.27692022]
[1704073766905,0.01072968,42724.0,42723.0,0.04370311]
[1704073767403,0.01072968,42724.0,42723.0,0.036]
[1704073767404,0.47884968,42724.0,42723.0,0.036]
[1704073767952,0.11227131,42734.0,42730.0,0.3]
[1704073768217,0.14397,42743.0,42736.0,0.1]
[1704073768407,0.14052716,42747.0,42737.0,0.23321711]
[1704073768643,0.14052716,42747.0,42737.0,0.38898616]
[1704073768856,0.16290333,42746.0,42739.0,0.1]
[1704073769059,0.16290333,42746.0,42740.0,0.70116011]